[Event "Championnat d'Europe Rapide"]
[Date "2024.12.08"]
[White "Stojanovski, Dejan"]
[Black "Nevednichy, Vladislav"]
[WhiteElo "2407"]
[BlackElo "2451"]
[Round "8.29"]
[Result "1-0"]
[TimeControl "900+10"]

1. d4 {[%emt 00:29:22] [%clk 00:15:19]} Nf6 {[%emt 00:00:06] [%clk 00:15:14]} 2.
Nf3 {[%emt 00:00:01] [%clk 00:15:28]} g6 {[%emt 00:00:05] [%clk 00:15:19]} 3.
Nbd2 {[%emt 00:00:02] [%clk 00:15:35]} Bg7 {[%emt 00:00:08] [%clk 00:15:22]} 4.
e4 {[%emt 00:00:01] [%clk 00:15:43]} d6 {[%emt 00:00:02] [%clk 00:15:30]} 5.
Bb5+ {[%emt 00:00:03] [%clk 00:15:50]} c6 {[%emt 00:00:19] [%clk 00:15:22]} 6.
Bd3 {[%emt 00:00:02] [%clk 00:15:59]} O-O {[%emt 00:00:18] [%clk 00:15:14]} 7.
O-O {[%emt 00:00:03] [%clk 00:16:05]} Nbd7 {[%emt 00:01:07] [%clk 00:14:18]} 8.
Re1 {[%emt 00:00:27] [%clk 00:15:48]} e5 {[%emt 00:00:53] [%clk 00:13:35]} 9. c3
{[%emt 00:00:04] [%clk 00:15:54]} h6 {[%emt 00:00:23] [%clk 00:13:22]} 10. Bf1
{[%emt 00:00:04] [%clk 00:15:59]} Qe7 {[%emt 00:00:15] [%clk 00:13:18]} 11. a4
{[%emt 00:01:13] [%clk 00:14:56]} Nh7 {[%emt 00:02:29] [%clk 00:10:59]} 12. Nc4
{[%emt 00:00:23] [%clk 00:14:43]} Nhf6 {[%emt 00:01:04] [%clk 00:10:04]} 13.
dxe5 {[%emt 00:01:16] [%clk 00:13:37]} dxe5 {[%emt 00:00:10] [%clk 00:10:04]}
14. b3 {[%emt 00:00:01] [%clk 00:13:45]} Rd8 {[%emt 00:02:13] [%clk 00:08:01]}
15. Ba3 {[%emt 00:00:08] [%clk 00:13:47]} c5 {[%emt 00:00:14] [%clk 00:07:58]}
16. Qd6 {[%emt 00:00:55] [%clk 00:13:01]} Qxd6 {[%emt 00:03:11] [%clk 00:04:58]}
17. Nxd6 {[%emt 00:00:02] [%clk 00:13:09]} Ne8 {[%emt 00:00:08] [%clk 00:05:01]}
18. Rad1 {[%emt 00:01:04] [%clk 00:12:15]} Bf8 {[%emt 00:01:35] [%clk 00:03:36]}
19. Nc4 {[%emt 00:00:39] [%clk 00:11:45]} Be7 {[%emt 00:00:43] [%clk 00:03:03]}
20. Ncxe5 {[%emt 00:01:04] [%clk 00:10:51]} Nxe5 {[%emt 00:00:03] [%clk
00:03:11]} 21. Nxe5 {[%emt 00:00:01] [%clk 00:11:00]} Be6 {[%emt 00:00:49] [%clk
00:02:32]} 22. Nc4 {[%emt 00:00:54] [%clk 00:10:15]} b6 {[%emt 00:00:18] [%clk
00:02:25]} 23. f3 {[%emt 00:00:19] [%clk 00:10:05]} Bf6 {[%emt 00:00:24] [%clk
00:02:11]} 24. Bb2 {[%emt 00:00:19] [%clk 00:09:57]} g5 {[%emt 00:00:22] [%clk
00:01:59]} 25. Be2 {[%emt 00:00:49] [%clk 00:09:18]} Nc7 {[%emt 00:00:25] [%clk
00:01:43]} 26. Kf2 {[%emt 00:00:50] [%clk 00:08:38]} Rxd1 {[%emt 00:00:57] [%clk
00:00:56]} 27. Rxd1 {[%emt 00:00:01] [%clk 00:08:47]} b5 {[%emt 00:00:01] [%clk
00:01:05]} 28. axb5 {[%emt 00:00:11] [%clk 00:08:47]} Nxb5 {[%emt 00:00:01]
[%clk 00:01:14]} 29. e5 {[%emt 00:00:12] [%clk 00:08:44]} Bg7 {[%emt 00:00:19]
[%clk 00:01:04]} 30. g3 {[%emt 00:00:35] [%clk 00:08:19]} Rb8 {[%emt 00:00:16]
[%clk 00:00:59]} 31. f4 {[%emt 00:01:07] [%clk 00:07:21]} Nc7 {[%emt 00:00:09]
[%clk 00:01:00]} 32. Ba3 {[%emt 00:00:02] [%clk 00:07:29]} Nb5 {[%emt 00:00:33]
[%clk 00:00:37]} 33. Bb2 {[%emt 00:00:19] [%clk 00:07:20]} Nc7 {[%clk 00:00:46]}
34. Na5 {[%emt 00:04:30] [%clk 00:03:00]} f6 {[%emt 00:00:31] [%clk 00:00:25]}
35. c4 {[%emt 00:00:26] [%clk 00:02:44]} fxe5 {[%emt 00:00:02] [%clk 00:00:33]}
36. Bxe5 {[%emt 00:00:03] [%clk 00:02:51]} Bxe5 {[%emt 00:00:05] [%clk
00:00:38]} 37. fxe5 {[%clk 00:03:01]} Bf5 {[%emt 00:00:06] [%clk 00:00:42]} 38.
Rd6 {[%emt 00:00:08] [%clk 00:03:02]} Rb6 {[%emt 00:00:11] [%clk 00:00:42]} 39.
g4 {[%emt 00:00:10] [%clk 00:03:02]} Bc2 {[%emt 00:00:05] [%clk 00:00:47]} 40.
Rd8+ {[%emt 00:00:04] [%clk 00:03:08]} 1-0

[Site "Europe Echecs"]

[Event "Championnat d'Europe Rapide"]
[Date "2024.12.08"]
[White "Janik, Igor"]
[Black "Fromm, Marius"]
[WhiteElo "2515"]
[BlackElo "2459"]
[Round "8.30"]
[Result "1-0"]
[TimeControl "900+10"]

1. e4 {[%emt 00:29:13] [%clk 00:15:19]} c5 {[%emt 00:00:04] [%clk 00:15:16]} 2.
Nf3 {[%emt 00:00:02] [%clk 00:15:27]} e6 {[%emt 00:00:02] [%clk 00:15:25]} 3. g3
{[%emt 00:00:02] [%clk 00:15:35]} Nc6 {[%emt 00:00:18] [%clk 00:15:16]} 4. Bg2
{[%emt 00:00:02] [%clk 00:15:44]} Nf6 {[%emt 00:00:01] [%clk 00:15:25]} 5. Qe2
{[%emt 00:00:01] [%clk 00:15:52]} d5 {[%emt 00:00:24] [%clk 00:15:11]} 6. e5
{[%emt 00:00:10] [%clk 00:15:52]} Nd7 {[%emt 00:00:17] [%clk 00:15:04]} 7. d3
{[%emt 00:00:02] [%clk 00:16:00]} Be7 {[%emt 00:00:31] [%clk 00:14:42]} 8. O-O
{[%emt 00:00:21] [%clk 00:15:49]} b5 {[%emt 00:00:28] [%clk 00:14:25]} 9. h4
{[%emt 00:00:17] [%clk 00:15:41]} a5 {[%emt 00:00:39] [%clk 00:13:56]} 10. Re1
{[%emt 00:00:14] [%clk 00:15:37]} b4 {[%emt 00:00:10] [%clk 00:13:55]} 11. Nbd2
{[%emt 00:00:06] [%clk 00:15:41]} a4 {[%emt 00:00:31] [%clk 00:13:35]} 12. Nf1
{[%emt 00:00:12] [%clk 00:15:39]} Ba6 {[%emt 00:00:32] [%clk 00:13:13]} 13. Bg5
{[%emt 00:01:33] [%clk 00:14:16]} Bxg5 {[%emt 00:01:17] [%clk 00:12:06]} 14.
hxg5 {[%emt 00:02:24] [%clk 00:12:01]} h6 {[%emt 00:00:06] [%clk 00:12:11]} 15.
g6 {[%emt 00:00:48] [%clk 00:11:24]} fxg6 {[%emt 00:00:35] [%clk 00:11:46]} 16.
Nh4 {[%emt 00:00:08] [%clk 00:11:25]} Nf8 {[%emt 00:00:54] [%clk 00:11:03]} 17.
f4 {[%emt 00:00:50] [%clk 00:10:45]} Nd4 {[%emt 00:01:17] [%clk 00:09:56]} 18.
Qf2 {[%emt 00:00:20] [%clk 00:10:35]} Qe7 {[%emt 00:02:15] [%clk 00:07:51]} 19.
c3 {[%emt 00:01:34] [%clk 00:09:12]} bxc3 {[%emt 00:00:51] [%clk 00:07:10]} 20.
bxc3 {[%emt 00:00:01] [%clk 00:09:21]} Nf5 {[%emt 00:00:01] [%clk 00:07:18]} 21.
c4 {[%emt 00:00:01] [%clk 00:09:30]} Rd8 {[%emt 00:02:38] [%clk 00:04:50]} 22.
Nxf5 {[%emt 00:01:05] [%clk 00:08:35]} gxf5 {[%emt 00:00:03] [%clk 00:04:57]}
23. cxd5 {[%emt 00:00:01] [%clk 00:08:44]} exd5 {[%emt 00:00:17] [%clk
00:04:50]} 24. Qc2 {[%emt 00:00:01] [%clk 00:08:53]} Bc8 {[%emt 00:01:34] [%clk
00:03:25]} 25. Qxa4+ {[%emt 00:00:22] [%clk 00:08:40]} Kf7 {[%emt 00:00:03]
[%clk 00:03:33]} 26. Ne3 {[%emt 00:00:41] [%clk 00:08:10]} Be6 {[%emt 00:00:13]
[%clk 00:03:30]} 27. Qc6 {[%emt 00:01:07] [%clk 00:07:12]} d4 {[%emt 00:01:26]
[%clk 00:02:13]} 28. Nc4 {[%emt 00:00:11] [%clk 00:07:11]} Kg8 {[%emt 00:00:42]
[%clk 00:01:41]} 29. Nd6 {[%emt 00:00:11] [%clk 00:07:11]} h5 {[%emt 00:00:33]
[%clk 00:01:19]} 30. Bd5 {[%emt 00:02:42] [%clk 00:04:38]} h4 {[%emt 00:01:16]
[%clk 00:00:13]} 31. g4 {[%emt 00:00:41] [%clk 00:04:07]} fxg4 {[%emt 00:00:09]
[%clk 00:00:14]} 32. f5 {[%emt 00:00:06] [%clk 00:04:11]} Bxd5 {[%emt 00:00:12]
[%clk 00:00:12]} 33. Qxd5+ {[%emt 00:00:02] [%clk 00:04:19]} Kh7 {[%emt
00:00:01] [%clk 00:00:20]} 34. Qe4 {[%clk 00:04:28]} Kg8 {[%emt 00:00:18] [%clk
00:00:12]} 35. Qxg4 {[%emt 00:00:02] [%clk 00:04:36]} Rh6 {[%emt 00:00:10] [%clk
00:00:12]} 36. Rab1 {[%emt 00:00:42] [%clk 00:04:05]} h3 {[%emt 00:00:09] [%clk
00:00:13]} 37. f6 {[%emt 00:00:29] [%clk 00:03:45]} Qd7 {[%emt 00:00:12]} 38. e6
{[%emt 00:02:25] [%clk 00:01:30]} h2+ {[%emt 00:00:01] [%clk 00:00:21]} 39. Kh1
{[%emt 00:00:10] [%clk 00:01:29]} Qc6+ {[%emt 00:00:03] [%clk 00:00:29]} 40. Re4
{[%emt 00:00:19] [%clk 00:01:20]} Rxf6 {[%emt 00:00:03] [%clk 00:00:35]} 41. Nf5
{[%emt 00:00:36] [%clk 00:00:54]} Rxf5 {[%emt 00:00:29] [%clk 00:00:16]} 42.
Qxf5 {[%clk 00:01:03]} Re8 {[%emt 00:00:15] [%clk 00:00:12]} 43. Qf7+ {[%emt
00:00:14] [%clk 00:00:58]} Kh8 {[%emt 00:00:08] [%clk 00:00:13]} 44. Rb2 {[%emt
00:00:05] [%clk 00:01:02]} Nh7 {[%emt 00:00:13] [%clk 00:00:11]} 45. Rxh2 {[%emt
00:00:21] [%clk 00:00:51]} Qb5 {[%emt 00:00:02] [%clk 00:00:20]} 46. Rxh7+
{[%emt 00:00:04] [%clk 00:00:57]} 1-0

[Site "Europe Echecs"]

[Event "Championnat d'Europe Rapide"]
[Date "2024.12.08"]
[White "Subelj, Jan"]
[Black "Krallis, Christos"]
[WhiteElo "2526"]
[BlackElo "2383"]
[Round "8.31"]
[Result "1-0"]
[TimeControl "900+10"]

1. Nf3 {[%emt 00:00:02] [%clk 00:15:17]} c5 {[%emt 00:00:18] [%clk 00:15:02]} 2.
e4 {[%emt 00:00:12] [%clk 00:15:16]} e6 {[%emt 00:00:06] [%clk 00:15:06]} 3. d4
{[%emt 00:00:05] [%clk 00:15:21]} cxd4 {[%emt 00:00:03] [%clk 00:15:13]} 4. Nxd4
{[%emt 00:00:03] [%clk 00:15:28]} Nf6 {[%emt 00:00:03] [%clk 00:15:18]} 5. Nc3
{[%emt 00:00:10] [%clk 00:15:29]} Nc6 {[%emt 00:00:02] [%clk 00:15:26]} 6. Nxc6
{[%emt 00:00:07] [%clk 00:15:32]} bxc6 {[%emt 00:00:02] [%clk 00:15:33]} 7. e5
{[%emt 00:00:03] [%clk 00:15:40]} Nd5 {[%emt 00:00:03] [%clk 00:15:40]} 8. Ne4
{[%emt 00:00:03] [%clk 00:15:47]} Qc7 {[%emt 00:00:02] [%clk 00:15:48]} 9. f4
{[%emt 00:00:08] [%clk 00:15:50]} Qb6 {[%emt 00:00:53] [%clk 00:15:04]} 10. c4
{[%emt 00:00:04] [%clk 00:15:56]} Ne3 {[%emt 00:02:22] [%clk 00:12:52]} 11. Qd3
{[%emt 00:00:03] [%clk 00:16:04]} Nf5 {[%emt 00:00:03] [%clk 00:12:59]} 12. Be2
{[%emt 00:01:06] [%clk 00:15:08]} Bb7 {[%emt 00:00:34] [%clk 00:12:36]} 13. Bd2
{[%emt 00:01:50] [%clk 00:13:28]} c5 {[%emt 00:02:04] [%clk 00:10:42]} 14. Bc3
{[%emt 00:00:50] [%clk 00:12:47]} O-O-O {[%emt 00:05:18] [%clk 00:05:34]} 15.
Ng5 {[%emt 00:01:10] [%clk 00:11:47]} Nh6 {[%emt 00:00:12] [%clk 00:05:33]} 16.
Bf3 {[%emt 00:00:16] [%clk 00:11:40]} Be7 {[%emt 00:00:37] [%clk 00:05:07]} 17.
Bxb7+ {[%clk 00:11:11]} Qxb7 {[%emt 00:01:08] [%clk 00:04:48]} 18. O-O-O {[%emt
00:00:23] [%clk 00:10:58]} d5 {[%emt 00:01:11] [%clk 00:03:47]} 19. exd6 {[%emt
00:00:40] [%clk 00:10:28]} Bxd6 {[%emt 00:00:21] [%clk 00:03:36]} 20. Qe4 {[%emt
00:01:47] [%clk 00:08:51]} Qxe4 {[%clk 00:03:37]} 21. Nxe4 {[%emt 00:00:11]
[%clk 00:08:59]} Bxf4+ {[%emt 00:00:03] [%clk 00:03:44]} 22. Kb1 {[%emt
00:00:05] [%clk 00:09:05]} Nf5 {[%emt 00:00:40] [%clk 00:03:13]} 23. Nxc5 {[%emt
00:00:03] [%clk 00:09:12]} Rxd1+ {[%emt 00:00:55] [%clk 00:02:28]} 24. Rxd1
{[%emt 00:00:02] [%clk 00:09:20]} Bxh2 {[%emt 00:00:17] [%clk 00:02:20]} 25. Rd7
{[%emt 00:00:27] [%clk 00:09:04]} Nd6 {[%emt 00:00:36] [%clk 00:01:55]} 26. Rxa7
{[%emt 00:00:14] [%clk 00:09:01]} Kb8 {[%emt 00:00:01] [%clk 00:02:02]} 27. Re7
{[%emt 00:01:33] [%clk 00:07:38]} Nxc4 {[%emt 00:01:40] [%clk 00:00:32]} 28.
Rxf7 {[%emt 00:00:07] [%clk 00:07:41]} Rc8 {[%emt 00:00:21] [%clk 00:00:21]} 29.
Na6+ {[%emt 00:01:19] [%clk 00:06:33]} Ka8 {[%emt 00:00:02] [%clk 00:00:29]} 30.
a4 {[%emt 00:00:01] [%clk 00:06:42]} Rc6 {[%emt 00:00:11] [%clk 00:00:27]} 31.
Nb4 {[%emt 00:00:05] [%clk 00:06:47]} Rc7 {[%emt 00:00:11] [%clk 00:00:26]} 32.
Rf8+ {[%emt 00:01:11] [%clk 00:05:47]} Kb7 {[%emt 00:00:02] [%clk 00:00:34]} 33.
Re8 {[%emt 00:00:01] [%clk 00:05:55]} e5 {[%emt 00:00:27] [%clk 00:00:17]} 34.
Nd3 {[%emt 00:00:47] [%clk 00:05:18]} Rf7 {[%emt 00:00:01] [%clk 00:00:26]} 35.
Ka2 {[%emt 00:00:53] [%clk 00:04:36]} g5 {[%emt 00:00:18] [%clk 00:00:18]} 36.
Kb3 {[%emt 00:00:13] [%clk 00:04:33]} Nd6 {[%emt 00:00:01] [%clk 00:00:26]} 37.
Nxe5 {[%emt 00:00:48] [%clk 00:03:55]} Nxe8 {[%emt 00:00:01] [%clk 00:00:35]}
38. Nxf7 {[%emt 00:00:01] [%clk 00:04:04]} g4 {[%emt 00:00:01] [%clk 00:00:43]}
39. Nh6 {[%emt 00:00:05] [%clk 00:04:08]} g3 {[%emt 00:00:09] [%clk 00:00:44]}
40. Be5 {[%emt 00:00:01] [%clk 00:04:17]} Kc6 {[%emt 00:00:19] [%clk 00:00:36]}
41. Kc4 {[%emt 00:00:01] [%clk 00:04:26]} Kd7 {[%emt 00:00:04] [%clk 00:00:41]}
42. Kd5 {[%emt 00:00:51] [%clk 00:03:45]} Nc7+ {[%emt 00:00:23] [%clk 00:00:28]}
43. Bxc7 {[%emt 00:00:03] [%clk 00:03:53]} Kxc7 {[%emt 00:00:01] [%clk
00:00:36]} 44. Nf5 {[%emt 00:00:02] [%clk 00:04:01]} Kb6 {[%emt 00:00:14] [%clk
00:00:32]} 45. b4 {[%emt 00:00:05] [%clk 00:04:06]} h5 {[%emt 00:00:09] [%clk
00:00:33]} 46. Kc4 {[%emt 00:00:32] [%clk 00:03:44]} Ka6 {[%emt 00:00:06] [%clk
00:00:37]} 47. a5 {[%emt 00:00:02] [%clk 00:03:53]} Bg1 {[%emt 00:00:22] [%clk
00:00:25]} 48. Nxg3 {[%emt 00:00:02] [%clk 00:04:01]} h4 {[%emt 00:00:01] [%clk
00:00:34]} 49. Ne4 {[%emt 00:00:02] [%clk 00:04:09]} 1-0

[Site "Europe Echecs"]

[Event "Championnat d'Europe Rapide"]
[Date "2024.12.08"]
[White "Domalchuk-Jonasson, Aleksandr"]
[Black "Muradli, Mahammad"]
[WhiteElo "2377"]
[BlackElo "2588"]
[Round "8.32"]
[Result "0-1"]
[TimeControl "900+10"]

1. d4 {[%emt 00:00:03] [%clk 00:15:17]} Nf6 {[%emt 00:00:02] [%clk 00:15:19]} 2.
c4 {[%emt 00:00:02] [%clk 00:15:25]} e6 {[%emt 00:00:02] [%clk 00:15:27]} 3. Nc3
{[%emt 00:00:06] [%clk 00:15:28]} Bb4 {[%emt 00:00:02] [%clk 00:15:34]} 4. Qc2
{[%emt 00:00:33] [%clk 00:15:05]} d6 {[%emt 00:00:39] [%clk 00:15:06]} 5. e4
{[%emt 00:02:42] [%clk 00:12:33]} c5 {[%emt 00:00:27] [%clk 00:14:49]} 6. d5
{[%emt 00:01:49] [%clk 00:10:53]} exd5 {[%emt 00:00:11] [%clk 00:14:48]} 7. exd5
{[%emt 00:00:01] [%clk 00:11:02]} b5 {[%emt 00:00:07] [%clk 00:14:52]} 8. Bg5
{[%emt 00:05:58] [%clk 00:05:14]} O-O {[%emt 00:00:51] [%clk 00:14:12]} 9. O-O-O
{[%emt 00:00:34] [%clk 00:04:49]} Bxc3 {[%emt 00:01:19] [%clk 00:13:02]} 10.
Qxc3 {[%emt 00:00:12] [%clk 00:04:47]} Nbd7 {[%clk 00:13:11]} 11. Nf3 {[%emt
00:00:30] [%clk 00:04:28]} Qb6 {[%emt 00:00:29] [%clk 00:12:53]} 12. Nd2 {[%emt
00:00:33] [%clk 00:04:05]} Ba6 {[%emt 00:01:03] [%clk 00:12:00]} 13. cxb5 {[%emt
00:01:27] [%clk 00:02:47]} Bxb5 {[%emt 00:00:02] [%clk 00:12:08]} 14. Bxb5
{[%emt 00:00:03] [%clk 00:02:54]} Qxb5 {[%emt 00:00:02] [%clk 00:12:17]} 15.
Rhe1 {[%emt 00:00:03] [%clk 00:03:01]} Nxd5 {[%emt 00:00:40] [%clk 00:11:47]}
16. Qc4 {[%emt 00:00:23] [%clk 00:02:48]} Qc6 {[%emt 00:00:08] [%clk 00:11:49]}
17. Qe4 {[%emt 00:02:08] [%clk 00:00:50]} N7b6 {[%emt 00:00:06] [%clk 00:11:54]}
18. Nc4 {[%emt 00:00:04] [%clk 00:00:56]} Rae8 {[%emt 00:00:05] [%clk 00:11:59]}
19. Qg4 {[%emt 00:00:15] [%clk 00:00:50]} Qa4 {[%emt 00:01:42] [%clk 00:10:27]}
20. Ne3 {[%emt 00:00:43] [%clk 00:00:17]} Re4 {[%emt 00:00:03] [%clk 00:10:34]}
21. Qxe4 {[%emt 00:00:15] [%clk 00:00:13]} Qxe4 {[%emt 00:00:03]} 22. Nxd5
{[%emt 00:00:01] [%clk 00:00:21]} Qc4+ {[%emt 00:00:02] [%clk 00:10:49]} 23. Nc3
{[%emt 00:00:01] [%clk 00:00:29]} d5 {[%emt 00:00:20] [%clk 00:10:39]} 24. Kb1
{[%clk 00:00:38]} d4 {[%emt 00:00:12] [%clk 00:10:37]} 25. Ne4 {[%emt 00:00:02]
[%clk 00:00:46]} h6 {[%emt 00:00:24] [%clk 00:10:23]} 26. Be7 {[%emt 00:00:09]
[%clk 00:00:48]} Rb8 {[%emt 00:00:15] [%clk 00:10:18]} 27. Bd6 {[%emt 00:00:04]
[%clk 00:00:54]} Nd5 {[%emt 00:01:41] [%clk 00:08:47]} 28. Bxb8 {[%emt 00:00:43]
[%clk 00:00:21]} Nb4 {[%emt 00:00:02] [%clk 00:08:55]} 0-1

[Site "Europe Echecs"]

[Event "Championnat d'Europe Rapide"]
[Date "2024.12.08"]
[White "Maltsevskaya, Aleksandra"]
[Black "Peyrer, Konstantin"]
[WhiteElo "2368"]
[BlackElo "2440"]
[Round "8.33"]
[Result "0-1"]
[TimeControl "900+10"]

1. e4 {[%clk 00:15:18]} e5 {[%emt 00:00:04] [%clk 00:15:17]} 2. Nf3 {[%emt
00:00:02] [%clk 00:15:27]} Nc6 {[%emt 00:00:02] [%clk 00:15:25]} 3. Bb5 {[%emt
00:00:02] [%clk 00:15:35]} a6 {[%emt 00:00:04] [%clk 00:15:32]} 4. Ba4 {[%emt
00:00:01] [%clk 00:15:44]} f5 {[%emt 00:00:02] [%clk 00:15:40]} 5. d3 {[%emt
00:00:03] [%clk 00:15:51]} fxe4 {[%emt 00:00:02] [%clk 00:15:48]} 6. dxe4 {[%emt
00:00:01] [%clk 00:15:59]} Nf6 {[%emt 00:00:01] [%clk 00:15:57]} 7. Nc3 {[%emt
00:00:46] [%clk 00:15:24]} d6 {[%emt 00:00:02] [%clk 00:16:05]} 8. Bg5 {[%emt
00:00:22] [%clk 00:15:12]} Be7 {[%emt 00:00:02] [%clk 00:16:13]} 9. Bxf6 {[%emt
00:00:15] [%clk 00:15:08]} Bxf6 {[%emt 00:00:01] [%clk 00:16:21]} 10. Ne2 {[%emt
00:00:02] [%clk 00:15:16]} Bd7 {[%emt 00:00:32] [%clk 00:15:59]} 11. Ng3 {[%emt
00:00:16] [%clk 00:15:10]} O-O {[%emt 00:00:13] [%clk 00:15:55]} 12. h4 {[%emt
00:00:44] [%clk 00:14:37]} Nd4 {[%emt 00:00:25] [%clk 00:15:40]} 13. Bxd7 {[%emt
00:01:37] [%clk 00:13:10]} Qxd7 {[%emt 00:00:04] [%clk 00:15:45]} 14. c3 {[%emt
00:00:48] [%clk 00:12:32]} Ne6 {[%emt 00:00:18] [%clk 00:15:37]} 15. Nf5 {[%emt
00:01:42] [%clk 00:11:01]} Qc6 {[%emt 00:00:41] [%clk 00:15:05]} 16. Nd2 {[%emt
00:00:47] [%clk 00:10:24]} Nf4 {[%emt 00:00:32] [%clk 00:14:43]} 17. Qf3 {[%emt
00:02:20] [%clk 00:08:14]} Qb5 {[%emt 00:02:34] [%clk 00:12:19]} 18. O-O-O
{[%emt 00:00:03] [%clk 00:08:22]} g6 {[%emt 00:00:15] [%clk 00:12:14]} 19. g3
{[%emt 00:05:52] [%clk 00:02:40]} Nd3+ {[%emt 00:02:12] [%clk 00:10:12]} 20. Kc2
{[%emt 00:00:02] [%clk 00:02:48]} Nc5 {[%emt 00:00:28] [%clk 00:09:53]} 21. Nh6+
{[%emt 00:00:05] [%clk 00:02:54]} Kg7 {[%emt 00:00:08] [%clk 00:09:55]} 22. Qe3
{[%emt 00:00:02] [%clk 00:03:02]} Qd3+ {[%emt 00:00:58] [%clk 00:09:07]} 23.
Qxd3 {[%emt 00:00:09] [%clk 00:03:03]} Nxd3 {[%emt 00:00:01] [%clk 00:09:16]}
24. Kxd3 {[%emt 00:00:39] [%clk 00:02:34]} Kxh6 {[%emt 00:00:01] [%clk
00:09:24]} 25. f4 {[%emt 00:00:27] [%clk 00:02:17]} Kg7 {[%emt 00:00:27] [%clk
00:09:06]} 26. h5 {[%emt 00:00:15] [%clk 00:02:13]} Rad8 {[%emt 00:00:10] [%clk
00:09:06]} 27. Rdf1 {[%emt 00:00:12] [%clk 00:02:11]} d5 {[%emt 00:00:32] [%clk
00:08:44]} 28. hxg6 {[%emt 00:00:45] [%clk 00:01:36]} hxg6 {[%emt 00:00:20]
[%clk 00:08:33]} 29. fxe5 {[%emt 00:00:37] [%clk 00:01:10]} Bxe5 {[%emt
00:00:01] [%clk 00:08:41]} 30. Rxf8 {[%emt 00:00:02] [%clk 00:01:19]} Kxf8
{[%emt 00:00:01] [%clk 00:08:50]} 31. Nf3 {[%emt 00:00:13] [%clk 00:01:15]}
dxe4+ {[%emt 00:00:29] [%clk 00:08:31]} 32. Kxe4 {[%emt 00:00:02] [%clk
00:01:24]} Bxg3 {[%emt 00:00:02] [%clk 00:08:38]} 33. Rg1 {[%emt 00:00:17] [%clk
00:01:17]} Re8+ {[%emt 00:00:02] [%clk 00:08:47]} 34. Kd5 {[%emt 00:00:10] [%clk
00:01:17]} Bd6 {[%emt 00:01:21] [%clk 00:07:35]} 35. Rxg6 {[%emt 00:00:03] [%clk
00:01:25]} Re2 {[%emt 00:00:03] [%clk 00:07:41]} 36. c4 {[%emt 00:00:21] [%clk
00:01:15]} Rxb2 {[%emt 00:00:28] [%clk 00:07:22]} 37. a4 {[%emt 00:00:45] [%clk
00:00:40]} b6 {[%emt 00:00:35] [%clk 00:06:56]} 38. Nd4 {[%emt 00:00:27] [%clk
00:00:24]} Rd2 {[%emt 00:00:02] [%clk 00:07:04]} 39. Ke4 {[%emt 00:00:01] [%clk
00:00:33]} Ke7 {[%emt 00:01:36] [%clk 00:05:38]} 40. a5 {[%emt 00:00:16] [%clk
00:00:27]} bxa5 {[%emt 00:00:08] [%clk 00:05:39]} 41. c5 {[%emt 00:00:02] [%clk
00:00:35]} Bxc5 {[%emt 00:00:19] [%clk 00:05:30]} 42. Nc6+ {[%emt 00:00:28]
[%clk 00:00:17]} Kd7 {[%emt 00:00:06] [%clk 00:05:33]} 43. Nxa5 {[%emt 00:00:14]
[%clk 00:00:13]} Bb6 {[%emt 00:00:33] [%clk 00:05:10]} 44. Nc6 {[%emt 00:00:02]
[%clk 00:00:22]} a5 {[%emt 00:00:35] [%clk 00:04:45]} 45. Kf3 {[%emt 00:00:17]
[%clk 00:00:14]} a4 {[%emt 00:00:19] [%clk 00:04:36]} 46. Ne5+ {[%emt 00:00:02]
[%clk 00:00:22]} Kc8 {[%emt 00:00:01] [%clk 00:04:44]} 47. Nc4 {[%emt 00:00:01]
[%clk 00:00:31]} Rd3+ {[%clk 00:04:53]} 48. Ke2 {[%emt 00:00:02] [%clk
00:00:39]} Rb3 {[%emt 00:00:01] [%clk 00:05:02]} 49. Kd2 {[%emt 00:00:24] [%clk
00:00:25]} a3 {[%emt 00:00:42] [%clk 00:04:31]} 50. Kc2 {[%emt 00:00:13] [%clk
00:00:21]} a2 {[%emt 00:00:11] [%clk 00:04:31]} 51. Nxb6+ {[%emt 00:00:01] [%clk
00:00:30]} Rxb6 {[%emt 00:00:03] [%clk 00:04:37]} 52. Rg1 {[%emt 00:00:01] [%clk
00:00:39]} Rb1 {[%emt 00:00:02] [%clk 00:04:45]} 0-1

[Site "Europe Echecs"]